[Event "Turkish Youth Teams U18 2024"]
[Site "Karaman"]
[Date "2024.04.22"]
[Round "4"]
[White "Durucay, Uygar"]
[Black "Saskin, Ayaz"]
[Result "1-0"]
[ECO "A46"]
[WhiteElo "1995"]
[BlackElo "1696"]
[Annotator "TA"]
[PlyCount "73"]
[EventDate "2024.04.21"]
[EventType "team-tourn"]
[EventCountry "TUR"]
[SourceTitle "playchess.com"]
[Source "ChessBase"]
[SourceQuality "1"]
[TimeControl "5400+30"]

{[%evp 20,73,18,10,33,39,43,44,63,60,88,44,54,48,49,44,118,117,114,77,79,34,32,29,37,30,45,33,51,54,54,60,58,14,47,49,83,57,47,54,114,42,53,55,49,58,58,46,111,124,378,371,363,356,1777,1819]} 1. d4 {[%emt 0:02:00]} Nf6 {[%emt 0:01:00]} 2. Nf3 {[%emt 0:00:30]} e6 {[%emt 0:00:30]} 3. Bg5 {[%emt 0:00:00]} h6 {[%emt 0:00:30]} 4. Bh4 {[%emt 0:00:00]} c5 {[%emt 0:00:30]} 5. e3 {[%emt 0:01:30][%cal Be2e3,Be3d4][%mdl 32]} cxd4 {[%emt 0:00:30]} 6. exd4 {[%emt 0:00:00]} b6 {[%emt 0:01:30]} 7. Bd3 {[%emt 0:07:00]} Bb7 {[%emt 0:01:30]} 8. O-O {[%emt 0:05:30]} Be7 {[%emt 0:01:30]} 9. Nbd2 {[%emt 0:00:30]} O-O {[%emt 0:05:30]} 10. c3 {[%emt 0:00:30]} Nc6 {[%emt 0:00:30]} 11. a4 {[%emt 0:00:30]} Nd5 {[%emt 0:05:30]} 12. Bg3 {[%emt 0:01:30]} f5 {[%emt 0:07:30] Strongly threatening ...f4.} 13. h3 {[%emt 0:00:30]} Qe8 {[%emt 0:02:30] White is slightly better.} 14. Nc4 {[%emt 0:04:30]} Qg6 {[%emt 0:11:30]} 15. Nce5 {[%emt 0:03:30]} Nxe5 {[%emt 0:00:30]} 16. Nxe5 {[%emt 0:00:00]} Qe8 {[%emt 0:01:30]} 17. Qe2 {[%emt 0:05:00]} Nf6 {[%emt 0:02:30]} (17... Nc7 $14) 18. a5 $16 {[%emt 0:00:30][%cal Ba4a5,Ba5a6][%mdl 32]} Bd6 {[%emt 0:06:30]} 19. a6 {[%emt 0:10:30]} Be4 {[%emt 0:08:30]} 20. Bxe4 {[%emt 0:03:30]} Nxe4 {[%emt 0:00:30]} 21. Bh2 {[%emt 0:00:30]} Kh7 {[%emt 0:05:30]} 22. Rad1 {[%emt 0:04:30]} Rg8 {[%emt 0:03:30]} 23. g4 {[%emt 0:01:30]} g6 {[%emt 0:04:30][%cal Bg7g6,Bg6g5][%mdl 32]} 24. Kh1 {[%emt 0:04:30]} Qe7 {[%emt 0:02:30]} 25. f3 {[%emt 0:03:30]} Nf6 {[%emt 0:02:30]} 26. Qd2 {[%emt 0:06:30]} Raf8 {[%emt 0:04:56]} 27. c4 {[%emt 0:02:30][%cal Bc3c4,Bc4c5][%mdl 32]} Ne8 {[%emt 0:02:16]} 28. Bf4 {[%emt 0:05:30] White has more active pieces.} g5 {[%emt 0:04:08]} 29. Bh2 {[%emt 0:00:30][%cal Oc4c5]} Nc7 {[%emt 0:00:15] [#]} ({Black should try} 29... Bxe5 $14 30. Bxe5 (30. dxe5 Nc7 $16) 30... d6) 30. Qd3 {[%emt 0:01:30]} (30. c5 $1 $16 Bxe5 31. Bxe5) 30... Nxa6 {[%emt 0:03:17] [#]} 31. c5 $1 {[%emt 0:09:19]} Bxe5 {[%emt 0:00:37]} 32. Bxe5 {[%emt 0:00:00]} Nb4 {[%emt 0:01:07]} 33. Qa3 $36 {[%emt 0:01:46][%mdl 2048] White has the initiative.} Nc6 {[%emt 0:04:00]} ({Don't play} 33... bxc5 34. dxc5 Nd5 35. Bd6 $16 (35. Qxa7 Qf7 $16)) ({Better is} 33... a5 $14) 34. Bd6 {[%emt 0:00:20]} Qd8 {[%emt 0:00:10][%mdl 8192]} 35. Bxf8 $18 {[%emt 0:00:30]} Rxf8 {[%emt 0:00:00]} 36. cxb6 {[%emt 0:00:00]} Qxb6 {[%emt 0:00:50]} (36... axb6 37. d5 exd5 38. Rxd5 Qe8) 37. Qxf8 {[%emt 0:00:00] Weighted Error Value: White=0.12 (very precise) /Black=0.32.  Loses game:     	---       	Black=1      Mistake:       	White=1     	Black=4      Inaccurate:     	White=5     	Black=3      OK:         	White=9     	Black=5      Best:        	White=3     	Black=1} 1-0

[Event "Turkish Youth Teams U18 2024"]
[Site "Karaman"]
[Date "2024.04.22"]
[Round "4"]
[White "Dogan, Umut Anil"]
[Black "Durak, Can"]
[Result "0-1"]
[ECO "A05"]
[WhiteElo "1983"]
[BlackElo "2446"]
[Annotator "TA"]
[PlyCount "104"]
[EventDate "2024.04.21"]
[EventType "team-tourn"]
[EventCountry "TUR"]
[SourceTitle "playchess.com"]
[Source "ChessBase"]
[SourceQuality "1"]
[TimeControl "5400+30"]

{[%evp 9,104,10,14,-4,11,27,18,6,3,14,22,3,29,22,13,0,0,0,0,-14,0,-12,0,-4,62,-43,-35,-75,-65,-102,-109,-183,-193,-332,-339,-332,-341,-330,-274,-378,-278,-270,-313,-321,-298,-325,-319,-339,-352,-377,-381,-368,-371,-362,-353,-400,-418,-435,-440,-440,-421,-639,-622,-654,-649,-840,-851,-742,-626,-695,-677,-673,-415,-420,-400,-583,-539,-575,-531,-528,-554,-556,-448,-596,-564,-711,-733,-867,-863,-849,-804,-1112,-1094,-5397,-1019,-950,-883]} 1. Nf3 {[%emt 0:01:00]} Nf6 {[%emt 0:02:00]} 2. b3 {[%emt 0:00:30]} a5 {[%emt 0:00:00]} 3. a3 {[%emt 0:04:30]} d5 {[%emt 0:00:00]} 4. Bb2 {[%emt 0:00:30]} Bf5 {[%emt 0:01:30]} 5. c4 {[%emt 0:00:30]} e6 {[%emt 0:00:30]} 6. Nh4 {[%emt 0:06:30]} Bg4 {[%emt 0:00:00]} 7. h3 {[%emt 0:00:00]} Bh5 {[%emt 0:00:00]} 8. g4 {[%emt 0:00:00] The position is equal.} Bg6 {[%emt 0:00:00]} 9. Nxg6 {[%emt 0:00:30]} hxg6 {[%emt 0:00:00][%cal Bh7g6,Bg6g5][%mdl 32]} 10. Bg2 {[%emt 0:00:30]} c6 {[%emt 0:02:30]} 11. Nc3 {[%emt 0:07:30]} Bd6 {[%emt 0:00:00]} 12. e3 {[%emt 0:00:30]} Nbd7 {[%emt 0:00:00][%cal Bb8d7,Bd7f8,Bf8g6,Bg6h4,Bh4f3][%mdl 32]} 13. Qc2 $1 {[%emt 0:00:30]} g5 {[%emt 0:00:30]} 14. d4 {[%emt 0:02:30]} Qe7 {[%emt 0:01:30]} 15. Ne2 {[%emt 0:21:30]} Nf8 {[%emt 0:04:30]} 16. Ng1 {[%emt 0:03:30]} e5 {[%emt 0:04:30]} (16... Ng6 $11) 17. Nf3 {[%emt 0:05:30]} (17. cxd5 $14 cxd5 18. dxe5 Bxe5 19. Nf3 Bxb2 20. Qxb2) 17... e4 $15 {[%emt 0:00:30]} 18. Nxg5 {[%emt 0:01:30]} Ng6 {[%emt 0:00:30] Black keeps a firm grip on the game.} 19. c5 {[%emt 0:08:30]} Bc7 {[%emt 0:00:00] Strongly threatening ...Nh4.} 20. O-O-O {[%emt 0:00:30]} (20. Rg1 $17) 20... Nh4 $19 {[%emt 0:00:00]} 21. f4 {[%emt 0:01:30]} (21. Rdg1 $142) 21... exf3 {[%emt 0:01:30]} 22. Nxf3 {[%emt 0:00:00]} Nxf3 {[%emt 0:00:30]} (22... Qxe3+ $2 23. Kb1 Nxg2 (23... Nxf3 24. Rd3 $11) 24. Qxg2 Qxb3 25. Ng5 $17) 23. e4 {[%emt 0:00:00]} Ng5 {[%emt 0:02:30]} ({Not} 23... dxe4 24. Bxf3 Bf4+ (24... exf3 25. Rde1 $17) 25. Kb1 exf3 26. Rde1 $17) (23... Qxe4 24. Rd3 $19) 24. exd5 {[%emt 0:00:30]} cxd5 {[%emt 0:00:30]} 25. h4 {[%emt 0:00:30]} Nge4 {[%emt 0:01:30]} 26. g5 {[%emt 0:00:30]} Ng4 {[%emt 0:06:30]} 27. Bxe4 {[%emt 0:00:30]} dxe4 {[%emt 0:00:30]} 28. Rde1 {[%emt 0:04:30] Prevents Ne3} f5 {[%emt 0:00:30]} 29. gxf6 {[%emt 0:00:30]} Nxf6 {[%emt 0:00:30]} 30. d5 {[%emt 0:00:30]} Be5 {[%emt 0:00:00]} (30... Nxd5 $2 {loses.} 31. Rxe4 O-O-O 32. Rxe7 Nxe7 33. Bxg7 $18) 31. d6 {[%emt 0:00:00]} Bxb2+ {[%emt 0:00:00]} 32. Qxb2 {[%emt 0:00:00]} Qe6 {[%emt 0:00:30]} 33. Rhg1 {[%emt 0:01:30]} Kf8 {[%emt 0:01:30]} (33... Rxh4 $2 34. Rxg7 O-O-O 35. Re7 $19) 34. Rg5 {[%emt 0:00:00]} Re8 {[%emt 0:00:30]} ({Don't play} 34... Rxh4 35. Reg1 Rh5 36. Rxh5 Nxh5 37. Rg5) 35. b4 {[%emt 0:02:00]} (35. Reg1 $142 e3 (35... Rxh4 $2 36. Rxg7 Qe5 37. Qxe5 $17) 36. Qd4) 35... Rxh4 {[%emt 0:03:30] [#] Hoping for ...e3.} 36. bxa5 {[%emt 0:01:30]} Rh3 {[%emt 0:00:30]} 37. Qb4 {[%emt 0:02:30] Prevents Qc4+.} Rb3 {[%emt 0:00:30]} 38. Qd4 {[%emt 0:00:30]} Rf3 {[%emt 0:07:30]} 39. Rg2 {[%emt 0:04:30]} Qb3 {[%emt 0:03:30] [#] And now ...Rc3+ would win.} 40. Rb2 {[%emt 0:03:00]} Qc3+ {[%emt 0:00:30]} 41. Qxc3 {[%emt 0:00:30]} Rxc3+ {[%emt 0:00:00]} 42. Kd1 {[%emt 0:00:00]} (42. Kb1 {was forced.}) 42... Rxc5 {[%emt 0:00:00] Black is clearly winning.} 43. Rxb7 {[%emt 0:00:30]} Rd5+ {[%emt 0:00:00]} 44. Ke2 {[%emt 0:00:30]} Rxd6 {[%emt 0:00:00]} 45. Rg1 {[%emt 0:00:00]} Rd7 {[%emt 0:00:00]} 46. a6 {[%emt 0:00:00]} Ra8 {[%emt 0:00:00]} 47. Ra1 {[%emt 0:02:12]} Rxa6 {[%emt 0:00:30]} 48. Rb8+ {[%emt 0:00:30]} Kf7 {[%emt 0:00:30]} 49. a4 {[%emt 0:00:00]} Ra5 {[%emt 0:00:30] ...Rh5 is the strong threat.} 50. Ra3 {[%emt 0:00:33]} Nd5 {[%emt 0:00:30]} 51. Ra1 {[%emt 0:00:30]} Rda7 {[%emt 0:00:00]} 52. Rf1+ {[%emt 0:01:06]} Nf6 {[%emt 0:00:00] Weighted Error Value: White=0.45/Black=0.30.  Mistake:       	White=5     	Black=1      Inaccurate:     	White=4     	---        OK:         	White=14    	Black=19     Best:        	---       	Black=4      Strong:       	White=1     	---} 0-1

[Event "Turkish Youth Teams U18 2024"]
[Site "Karaman"]
[Date "2024.04.22"]
[Round "4"]
[White "Senel, Hayri Beyhun"]
[Black "Yilmaz, Oguz"]
[Result "1-0"]
[ECO "C20"]
[WhiteElo "1961"]
[BlackElo "1739"]
[Annotator "TA"]
[PlyCount "57"]
[EventDate "2024.04.21"]
[EventType "team-tourn"]
[EventCountry "TUR"]
[SourceTitle "playchess.com"]
[Source "ChessBase"]
[SourceQuality "1"]
[TimeControl "5400+30"]

{[%evp 9,57,-25,-10,-12,0,-45,-30,-36,-25,-37,-37,-35,-10,-27,-23,-84,-46,-56,-35,-53,-16,-15,-18,-18,-12,-20,1,8,38,27,111,83,91,104,108,110,166,170,302,188,394,375,543,551,540,535,920,917,1887,1480]} 1. e4 {[%emt 0:06:00]} e5 {[%emt 0:01:00]} 2. Qh5 {[%emt 0:00:30]} Nc6 {[%emt 0:00:30]} 3. Bc4 {[%emt 0:00:00]} g6 {[%emt 0:00:00]} 4. Qf3 {[%emt 0:00:00]} Nf6 {[%emt 0:00:00]} 5. Ne2 {[%emt 0:00:00]} Bg7 {[%emt 0:03:30]} 6. Nbc3 {[%emt 0:02:00]} d6 {[%emt 0:02:30]} 7. h3 {[%emt 0:00:00] Wards off Bg4} O-O {[%emt 0:01:30]} 8. O-O {[%emt 0:09:00] Black has an edge.} Na5 {[%emt 0:07:30]} 9. d3 {[%emt 0:12:30]} Nxc4 {[%emt 0:03:30]} 10. dxc4 {[%emt 0:00:30]} Be6 {[%emt 0:00:30]} 11. Qd3 {[%emt 0:23:30]} Nd7 {[%emt 0:21:30]} 12. Ng3 {[%emt 0:07:30]} (12. b3 $11 {remains equal.}) 12... Nc5 {[%emt 0:05:30]} 13. Qe2 {[%emt 0:00:00]} Qd7 {[%emt 0:06:30]} 14. Be3 {[%emt 0:13:00]} Na4 {[%emt 0:01:30]} 15. Nxa4 {[%emt 0:03:30]} Qxa4 {[%emt 0:00:30]} 16. b3 {[%emt 0:00:30]} Qc6 {[%emt 0:00:30]} 17. Rad1 {[%emt 0:06:54]} f5 {[%emt 0:02:30]} 18. exf5 {[%emt 0:00:43]} gxf5 {[%emt 0:00:30] [#] Strongly threatening ...f4.} 19. f4 {[%emt 0:00:00]} e4 {[%emt 0:00:30]} (19... Bh8 $11) 20. Nh5 $16 {[%emt 0:01:09]} Bc3 {[%emt 0:02:30]} 21. g4 {[%emt 0:02:47]} Qe8 {[%emt 0:04:30]} 22. Kh2 {[%emt 0:01:42] White is more active.} Bf7 {[%emt 0:02:30]} (22... h6 $16 {was worth a try.}) 23. Ng3 $18 {[%emt 0:01:42]} Bg6 {[%emt 0:05:30]} (23... fxg4 $142 24. Bd4 (24. Qxg4+ Kh8 $18) (24. hxg4 Be6 $18) 24... Bxd4) 24. Rd5 {[%emt 0:01:38][%cal Rg4f5]} c6 $2 {[%emt 0:01:30] [#]} (24... fxg4 25. f5 (25. Qxg4 Kh8 $16) (25. hxg4 Qd7 $18) 25... Bf7) 25. Rxd6 {[%emt 0:01:23]} Rd8 {[%emt 0:00:00]} (25... Qe7 $142) 26. Rxd8 {[%emt 0:01:29] White is clearly winning.} Qxd8 {[%emt 0:00:00]} 27. gxf5 {[%emt 0:00:44]} Bf7 {[%emt 0:00:30]} 28. Nxe4 {[%emt 0:01:16]} Bb4 {[%emt 0:01:30]} 29. Rd1 {[%emt 0:00:38] Weighted Error Value: White=0.15 (very precise) /Black=0.52.  Mistake:       	White=1     	Black=5      Inaccurate:     	White=2     	Black=5      OK:         	White=12    	Black=3      Best:        	White=1     	---} 1-0

[Event "Turkish Youth Teams U18 2024"]
[Site "Karaman"]
[Date "2024.04.22"]
[Round "4"]
[White "Buyuk, Ecrin Efsa"]
[Black "Aslan, Ela"]
[Result "1-0"]
[ECO "B23"]
[WhiteElo "1949"]
[BlackElo "1659"]
[Annotator "TA"]
[PlyCount "121"]
[EventDate "2024.04.21"]
[EventType "team-tourn"]
[EventCountry "TUR"]
[SourceTitle "playchess.com"]
[Source "ChessBase"]
[SourceQuality "1"]
[TimeControl "5400+30"]

{[%evp 10,121,85,67,72,59,75,77,94,83,77,110,74,85,205,209,289,260,271,268,342,348,299,355,319,319,309,304,318,262,319,308,296,296,511,283,279,242,348,397,389,398,364,324,401,391,434,476,533,553,526,546,562,566,559,552,615,604,623,375,382,373,346,337,471,450,413,-347,280,247,451,424,648,753,793,759,648,738,741,735,720,643,885,915,1122,1010,1529,1441,2187,1000,2490,2432,5093,5014,5704,4634,5305,2405,29978,29978,29980,29981,29982,29983,29983,29983,29984,29985,29985,29986,29986,29987,29987,29988]} 1. e4 {[%emt 0:01:00]} c5 {[%emt 0:04:00]} 2. Nc3 {[%emt 0:00:30]} e6 {[%emt 0:00:30]} 3. Nge2 {[%emt 0:00:30]} Nc6 {[%emt 0:00:00]} 4. g3 {[%emt 0:05:30]} g6 {[%emt 0:00:00]} 5. d4 {[%emt 0:02:30]} cxd4 {[%emt 0:02:30]} 6. Nxd4 {[%emt 0:00:30]} a6 {[%emt 0:04:30]} 7. Nxc6 {[%emt 0:04:30]} bxc6 {[%emt 0:00:30][%cal Bb7c6,Bc6c5][%mdl 32]} 8. Qd4 {[%emt 0:01:30]} Qf6 {[%emt 0:01:30] White is better.} 9. e5 {[%emt 0:02:30] White is more active.} Qf3 {[%emt 0:09:30]} 10. Rg1 {[%emt 0:28:30] [#] aiming for Bg2.} c5 {[%emt 0:14:30]} 11. Qc4 {[%emt 0:00:30]} Qf5 {[%emt 0:05:30]} (11... Rb8 $16) 12. f4 {[%emt 0:23:30] Threatens to win with g4.} Qh5 {[%emt 0:06:30]} 13. Be3 {[%emt 0:05:30]} Bb7 {[%emt 0:09:30]} 14. Be2 {[%emt 0:00:30]} (14. Bxc5 $6 Bf3 $18 (14... Rc8 $2 15. Qb4 $18)) 14... Bf3 {[%emt 0:03:30]} 15. g4 {[%emt 0:03:23]} (15. Bxc5 Rc8 (15... Bxe2 16. Nxe2 Rc8 17. b4 $14) 16. b4 (16. Qxa6 Rxc5 17. O-O-O Be7 $11) (16. Bxf3 Qxf3 17. b4 Bxc5 $11) 16... Bxc5 17. bxc5 Qxh2 $11) 15... Qh4+ {[%emt 0:02:30]} 16. Bf2 {[%emt 0:00:21]} Bxe2 {[%emt 0:00:00]} 17. Qxe2 {[%emt 0:00:23]} (17. Kxe2 Qd8 $16 (17... Qxh2 $2 {too greedy.} 18. Qe4 $18)) 17... Qd8 {[%emt 0:00:00]} 18. O-O-O {[%emt 0:00:00]} Qb6 {[%emt 0:05:30]} 19. Qd2 {[%emt 0:02:10][%csl Gd1][%cal Rd2d7]} Ra7 {[%emt 0:02:30]} 20. Ne4 {[%emt 0:01:17]} Rb7 {[%emt 0:03:30]} 21. b3 {[%emt 0:02:11]} Rc7 $2 {[%emt 0:10:30]} (21... Qc6) 22. g5 {[%emt 0:05:20]} Be7 {[%emt 0:05:41]} 23. Rg3 {[%emt 0:01:53]} Qc6 {[%emt 0:01:36]} (23... h6 $142 24. Rh3 Qb7) 24. Nd6+ $18 {[%emt 0:01:14]} Kf8 {[%emt 0:00:55]} 25. Rc3 {[%emt 0:01:14]} Qb6 {[%emt 0:00:30]} 26. Qe3 {[%emt 0:00:30]} Qb4 {[%emt 0:03:03]} 27. Rc4 {[%emt 0:00:44]} Qa5 {[%emt 0:00:13]} 28. Rxc5 {[%emt 0:02:58]} Rxc5 {[%emt 0:01:40]} 29. Qxc5 {[%emt 0:00:00]} Qxc5 {[%emt 0:02:33]} 30. Bxc5 {[%emt 0:00:04]} h6 {[%emt 0:00:30]} 31. h4 {[%emt 0:00:00]} hxg5 {[%emt 0:00:00]} 32. hxg5 {[%emt 0:00:00]} Rh4 {[%emt 0:00:17]} 33. Rd4 {[%emt 0:00:11]} Kg7 {[%emt 0:00:30]} 34. Ne8+ {[%emt 0:00:30]} Kf8 {[%emt 0:00:30]} 35. Bxe7+ {[%emt 0:00:30]} ({Weaker is} 35. Nd6 Rh3 36. Kb2 Rh2 $18) 35... Nxe7 {[%emt 0:00:30][%mdl 4096] Endgame. KRN-KRN} 36. Nf6 {[%emt 0:00:30]} Nd5 {[%emt 0:00:30]} 37. Nxd7+ {[%emt 0:00:30]} Ke8 {[%emt 0:00:30] [#]} 38. Re4 $4 {[%emt 0:00:30][%mdl 8192]} Kd8 $4 {[%emt 0:00:30][%mdl 8192]} (38... Kxd7 $19 39. Ra4 Rxf4 (39... Nxf4 40. Rxa6 Rh7 41. b4 $17) 40. Rxa6 Rf5 41. Ra7+ Nc7) 39. Nf6 {[%emt 0:00:30] Black is now going downhill.} Nxf6 $2 {[%emt 0:00:30]} (39... Nxf4 40. a4 Ng2) 40. exf6 {[%emt 0:00:30] KR-KR} e5 {[%emt 0:00:30]} (40... Kc7 $142 41. Kb2 Rh8) 41. Rxe5 {[%emt 0:00:30]} Rxf4 {[%emt 0:00:30]} 42. Re7 {[%emt 0:00:30]} Rf5 {[%emt 0:00:30]} 43. Rxf7 {[%emt 0:00:30]} Rxg5 {[%emt 0:00:30]} 44. Rg7 {[%emt 0:00:30] Intending Rg8+ and mate.} Ke8 {[%emt 0:00:30]} 45. Kb2 {[%emt 0:00:30]} Rg1 {[%emt 0:00:30]} 46. b4 {[%emt 0:00:30]} g5 {[%emt 0:00:30]} 47. a4 {[%emt 0:00:30][%cal Ba2a4,Ba4a5][%mdl 32] b5 would now be deadly.} Rf1 {[%emt 0:00:30]} 48. Rxg5 {[%emt 0:00:30]} Rxf6 {[%emt 0:00:30]} 49. Rd5 {[%emt 0:00:30]} Ke7 {[%emt 0:00:30]} 50. a5 {[%emt 0:00:30] Strongly threatening c4.} Rc6 {[%emt 0:00:30]} 51. Kb3 {[%emt 0:00:30]} Ke6 {[%emt 0:02:28]} 52. c4 {[%emt 0:00:42][%cal Bc2c4,Bc4b5][%mdl 32]} Rc8 {[%emt 0:00:27]} 53. Rd3 {[%emt 0:00:00] White threatens b5 and mate.} Rg8 {[%emt 0:00:43]} 54. b5 {[%emt 0:00:20] White mates.} axb5 {[%emt 0:00:29]} 55. cxb5 {[%emt 0:00:10]} Rg1 {[%emt 0:00:06]} 56. a6 {[%emt 0:00:34]} Ra1 {[%emt 0:00:50]} 57. Kb4 {[%emt 0:00:10]} Ra2 {[%emt 0:00:14]} 58. Ra3 {[%emt 0:00:09]} Rb2+ {[%emt 0:00:30]} 59. Ka5 {[%emt 0:00:30]} Rd2 {[%emt 0:00:30]} 60. a7 {[%emt 0:00:30]} Rd8 {[%emt 0:00:00]} 61. Kb6 {[%emt 0:00:08] Weighted Error Value: White=0.38/Black=0.65.  Missed win:     	White=1     	Black=1      Mistake:       	---       	Black=5      Inaccurate:     	White=1     	Black=2      OK:         	White=16    	Black=9      Best:        	White=1     	Black=3} 1-0